Cogmind - Beta 14 @@@ ROGUE MODE // 2024.08.07 @ 14:09:16 Player: Minty Result: Destroyed by G-34 Mercenary with Small Laser Performance ------------- Evolutions (0) 0 Regions Visited (1) 200 Robots Destroyed (19) 95 Value Destroyed (644) 644 Prototype IDs (0) 0 Alien Tech Used (0) 0 Bonus (8) 8 TOTAL SCORE: 947 Bonus ------- High Alert Combat Kills 8 Cogmind --------- Core Integrity 0/250 Matter 290/300 Energy 89/100 System Corruption 0% Temperature Warm (137) Movement Walking (120) Location -10/Materials Parts ------- > --- POWER (1) -------- Backup Power I > --- PROPULSION (2) --- Aluminum Leg > --- UTILITY (2) ------ Small Storage Unit > --- WEAPON (2) ------- EM Pulse Gun Small Laser > --- INVENTORY (8) ---- Flight Unit Flight Unit Flight Unit Sensor Array Peak State ------------ > --- POWER ------------ Ion Engine > --- PROPULSION ------- Aluminum Leg Aluminum Leg > --- UTILITY ---------- Small Storage Unit Sensor Array > --- WEAPON ----------- Assault Rifle Light Assault Rifle > --- INVENTORY -------- Ion Engine Light Treads Light Treads Wheel Compact Wheel Small Laser Grenade Launcher [Rating: 7] Favorites ----------- Power Ion Engine Engine Ion Engine Propulsion Aluminum Leg Leg Aluminum Leg Wheel Wheel Flight Unit Flight Unit Utility Small Storage Unit Device Sensor Array Storage Small Storage Unit Protection Backup Plating I Weapon EM Pulse Gun Energy Gun EM Pulse Gun Ballistic Gun Assault Rifle Launcher Grenade Launcher Build | -11 -10 ------- Run | Yrd Mat Slots Evolved . | . . Power . | . . Propulsion . | . . Utility . | . . Weapon . | . . Parts Attached 18 | . 18 Power 2 | . 2 Engine 2 | . 2 Core . | . . Reactor . | . . Propulsion 8 | . 8 Treads . | . . Leg 4 | . 4 Wheel 2 | . 2 Hover . | . . Flight 2 | . 2 Utility 1 | . 1 Device 1 | . 1 Storage . | . . Processor . | . . Hackware . | . . Protection . | . . Artifact . | . . Weapon 7 | . 7 Energy Gun 6 | . 6 Energy Cannon . | . . Ballistic Gun . | . . Ballistic Cannon . | . . Launcher 1 | . 1 Special Weapon . | . . Impact Weapon . | . . Slashing Weapon . | . . Piercing Weapon . | . . Special Melee Weapon . | . . Unidentified Prototypes . | . . Parts Lost 13 | . 13 Power 2 | . 2 Propulsion 5 | . 5 Utility 1 | . 1 Weapon 5 | . 5 Highest Loss Streak 7 | . 7 To Critical Strikes . | . . Average Slot Usage (%) 80 | . 80 Engine 12 | . 12 Leg 19 | . 19 Wheel 2 | . 2 Flight 1 | . 1 Storage 14 | . 14 Protection 8 | . 8 Energy Gun 14 | . 14 Ballistic Gun 6 | . 6 Peak Build Rating 7 | . 7 Average Rating 5 | . 5 On Entrance 6 | 6 6 Naked Turns . | . . Heaviest Build 15 | 13 15 Greatest Support 26 | 20 26 Greatest Overweight (x) 4 | . 4 Average Overweight (x) . | . . Largest Inventory Capacity 8 | . 8 Average Capacity 8 | . 8 Most Carried 8 | . 8 Average Carried 6 | . 6 Final Capacity 8 | 8 8 Final Carried 6 | 6 4 Class Distribution -------------------- 100% | Mutant Dominant Class ---------------- Mutant | -10/Materials Resources | -11 -10 ----------- Run | Yrd Mat Matter Collected 343 | 200 143 Remotely . | . . Salvage Created 721 | . 721 Parts 35 | . 35 Haulers Intercepted . | . . Recyclers Shooed . | . . Parts Field Recycled . | . . Retrieved Matter . | . . Parts Self-Destructed . | . . Prevented . | . . Kills | -11 -10 ------- Run | Yrd Mat Combat Hostiles Destroyed 16 | . 16 Guns 10 | . 10 AOE 6 | . 6 Classes Destroyed 3 | . 3 Worker 2 | . 2 Watcher 1 | . 1 Grunt 16 | . 16 Best Kill Streak 5 | . 5 Combat Bots Only 4 | . 4 Max Kills in Single Turn 4 | . 4 Gunslinging . | . . Exploded 3 | . 3 Melee . | . . Uniques/NPCs Destroyed . | . . Combat | -11 -10 -------- Run | Yrd Mat Hostile Shots Fired 116 | . 116 Missed 34 | . 34 Damage Taken 1236 | . 1236 Core 257 | . 257 Absorbed by Shields . | . . Core Remaining (%) 100 | 100 . Volleys Fired 47 | . 47 Largest 2 | . 2 Hottest 80 | . 80 Shots Fired 78 | . 78 Gun 77 | . 77 Cannon . | . . Launcher 1 | . 1 Special . | . . Kinetic 11 | . 11 Thermal 27 | . 27 Explosive 1 | . 1 Electromagnetic 39 | . 39 Robot Hit Streak 8 | . 8 Robot Miss Streak 3 | . 3 Penetration Max . | . . Secondary Targets 2 | . 2 Max Gunslinging Chain 1 | . 1 Shots Hit Robots 52 | . 52 Core Hits 36 | . 36 Critical Kills . | . . Critical Parts Destroyed . | . . Critical Strikes . | . . Melee Attacks . | . . Impact . | . . Slashing . | . . Piercing . | . . Sneak Attacks . | . . Combat Hostiles . | . . Follow-up Attacks . | . . Damage Inflicted 1328 | . 1328 Guns 603 | . 603 Cannons . | . . Explosions 725 | . 725 Melee . | . . Ramming . | . . Kinetic 45 | . 45 Thermal 371 | . 371 Explosive 498 | . 498 Electromagnetic 414 | . 414 Impact . | . . Slashing . | . . Piercing . | . . Highest Corruption . | . . Average Corruption . | . . Corruption Purged . | . . Corruption Blocked . | . . Overload Shots . | . . Overflow Damage 35 | . 35 Projectiles . | . . Explosions 35 | . 35 Melee . | . . Knockbacks . | . . Impact . | . . Kinetic . | . . Secondary . | . . Self-Inflicted Damage 250 | . 250 Shots 4 | . 4 Rammed . | . . Targets Rammed . | . . Kicked . | . . Crushed . | . . Highest Temperature 174 | . 174 Average Temperature 57 | . 57 Received Heat Transfer 579 | . 579 Siege Activations . | . . Robots Corrupted . | . . Combat Hostiles . | . . Parts Fried 1 | . 1 Impact Corruptions . | . . Robots Melted . | . . Combat Hostiles . | . . Parts Melted 1 | . 1 Heat Transferred 745 | . 745 Parts Sabotaged . | . . Parts Stolen . | . . Parts Stripped . | . . Power Chain Reactions 2 | . 2 Alert | -11 -10 ------- Run | Yrd Mat Peak Influence 404 | . 404 Initial . | . . Average 227 | . 227 Maximum Alert Level 2 | . 2 Low Security (%) 29 | . 29 Level 1 67 | . 67 Level 2 3 | . 3 Level 3 . | . . Level 4 . | . . Level 5 . | . . High Security . | . . Max Security . | . . Squads Dispatched 3 | . 3 Investigation 2 | . 2 Extermination . | . . Reinforcement 1 | . 1 Assault . | . . Garrison . | . . Intercept . | . . Searches Triggered . | . . Construction Impeded . | . . Haulers Reinforced . | . . Active Scanning Responses . | . . Cargo Convoy Interrupts . | . . Stealth | -11 -10 --------- Run | Yrd Mat Distress Signals 1 | . 1 Communications Jammed . | . . Distress Signals . | . . Times Spotted 23 | . 23 Peak Tracking Total 5 | . 5 Tactical Retreats . | . . Traps | -11 -10 ------- Run | Yrd Mat Traps Triggered 1 | . 1 Indirectly . | . . Trap Hack Attempts . | . . Triggered . | . . Disarmed . | . . Reprogrammed . | . . Reused . | . . Traps Extracted . | . . Installed . | . . Triggered . | . . Machines | -11 -10 ---------- Run | Yrd Mat Machines Disabled 3 | . 3 Max in Single Turn 3 | . 3 Machines Repaired . | . . Machines Dismantled . | . . Machines Sabotaged . | . . Overloaded Fab Kills . | . . Hacking | -11 -10 --------- Run | Yrd Mat Machines Accessed 3 | . 3 Terminals 1 | . 1 Fabricators . | . . Repair Stations 1 | . 1 Recycling Units 1 | . 1 Scanalyzers . | . . Garrison Access . | . . Total Hacks 11 | . 11 Successful 6 | . 6 Failed 5 | . 5 Catastrophic 1 | . 1 Database Lockouts . | . . Manual 8 | . 8 Terminals 8 | . 8 Fabricators . | . . Repair Stations 1 | . 1 Recycling Units 2 | . 2 Scanalyzers . | . . Garrison Access . | . . Terminal Hacks 2 | . 2 Robot Analysis 1 | . 1 Terminal Index 1 | . 1 Fabricator Hacks . | . . Repair Station Hacks 1 | . 1 Refit 1 | . 1 Recycling Unit Hacks 1 | . 1 Retrieve Components 1 | . 1 Scanalyzer . | . . Garrison Access Hacks . | . . Unauthorized Hacks 2 | . 2 Terminals 1 | . 1 Skim 1 | . 1 Fabricators . | . . Repair Stations . | . . Recycling Units 1 | . 1 Tunnel 1 | . 1 Scanalyzers . | . . Garrison Access . | . . Data Cores Recovered . | . . Used . | . . Hacking Detections 1 | . 1 Full Trace Events . | . . Feedback Events . | . . Feedback Blocked . | . . Robot Schematics Acquired . | . . Robots Built . | . . Authchips . | . . Time . | . . Total Robot Build Rating . | . . Part Schematics Acquired . | . . Parts Built . | . . Authchips . | . . Time . | . . Total Part Build Rating . | . . Parts Repaired . | . . Time . | . . Parts Recycled . | . . Recycled Matter . | . . Retrieved Matter . | . . Retrieved Components 1 | . 1 Parts Scanalyzed . | . . Part Schematics Acquired . | . . Parts Damaged . | . . Bothacking | -11 -10 ------------ Run | Yrd Mat Used RIF Installer . | . . Robots Hacked . | . . Non-combat . | . . Combat . | . . Robot Hacks Applied . | . . Relay Couplers Released . | . . Fabnet Peak Effective % . | . . Robots Rewired . | . . Allies Hacked . | . . Hacks Repelled . | . . Allies | -11 -10 -------- Run | Yrd Mat Total Allies . | . . Largest Group . | . . Highest-Rated Group . | . . Highest-Rated Ally . | . . Total Orders . | . . Ally Attacks . | . . Total Damage . | . . Kills . | . . Allies Corrupted . | . . Allies Melted . | . . Intel | -11 -10 ------- Run | Yrd Mat Robot Analysis Total 1 | . 1 Derelict Logs Recovered . | . . Drone Launches . | . . Drone Recoveries . | . . Exploration | -11 -10 ------------- Run | Yrd Mat Turns Passed 379 | . 379 Spaces Moved 195 | 1 194 Core 5 | . 5 Treads . | . . Legs 149 | 1 148 Wheels 26 | . 26 Hover . | . . Flight 15 | . 15 Fastest Speed 37 | 120 37 Average Speed 112 | 120 112 Slowest Speed 250 | 120 250 Overloaded Moves . | . . Propulsion Burnouts . | . . Robots Hopped . | . . Cave-ins Triggered . | . . Exploration Rate (%) 23 | 2 44 Regions Visited 1 Branch Regions . Pre-discovered Areas 1 | . 1 Known Exits Taken . | . . Unknown Exits Taken 1 | 1 . Scrap Searched . | . . Spaces Dug . | . . Terrain Destroyed 46 | . 46 Melee . | . . Projectile . | . . AOE 46 | . 46 Terrain Rammed . | . . Walls Destroyed . | . . Machines Disabled . | . . Actions | -11 -10 --------- Run | Yrd Mat Total 281 | . 281 Wait 3 | . 3 Move 194 | . 194 Hop . | . . Pick Up 6 | . 6 Fast Attach 5 | . 5 Attach 11 | . 11 Detach 8 | . 8 Swap 2 | . 2 Drop 5 | . 5 Fire 47 | . 47 Melee . | . . Ram . | . . Kick . | . . Crush . | . . Escape Stasis . | . . Rewire . | . . Trap . | . . Miscellaneous . | . . Route ------- -11/Scrapyard -10/Materials (discovered 2 exits: [*Mat] / [*Min]) History --------- Turn | Location | Event 1 | -11/Scrapyard | Discovered new exit (range 0) 1 | -11/Scrapyard | Entered Materials 92 | -10/Materials | Discovered new exit (range 16) 146 | -10/Materials | Lost 7 parts (1p3n3w) 232 | -10/Materials | Discovered new exit (range 4) 238 | -10/Materials | Core integrity fell below 50% 325 | -10/Materials | Build established: Mutant 368 | -10/Materials | Core integrity fell below 20% 380 | -10/Materials | Destroyed by G-34 Mercenary with Small Laser Last Messages --------------- 00342_ ALERT: Alarm triggered, dispatching investigation squad. 00343_ U-05 Engineer lays Concrete. 00353_ Ion Engine destroyed. 00362_ Chain reaction triggered in Lgt. Nuclear Core. 00362_ G-47 Trooper destroyed. 00362_ G-34 Mercenary destroyed. 00364_ K-01 Serf collects debris. 00365_ G-34 Mercenary destroyed. 00367_ K-01 Serf collects debris. 00367_ U-05 Engineer lays Concrete. 00369_ Aluminum Leg destroyed. 00369_ U-05 Engineer lays Concrete. 00370_ K-01 Serf collects debris. 00371_ U-05 Engineer lays Concrete. 00372_ Chain reaction triggered in Ion Engine. 00372_ K-01 Serf destroyed. 00373_ U-05 Engineer builds a Wall. 00377_ U-05 Engineer lays Concrete. 00377_ K-01 Serf collects debris. 00379_ U-05 Engineer builds a Wall. Map ----- +----------------------------------------------------+ | # ##########???# #????????????????? | | % + ##"""""""#???# #????????????????? | | # ^^##" !"! "#???# ###??????????????? | | # ##" "##### ##########+##??? | | # ! ?? | | # # < T ?? | | # ## ?? | | ### # ######+## ##### #############??? | | ??###### =%! #########???## ##??????????????? | | ???????# """==[ #????????????# ###########?????? | | ???????# """*%[ #????????????# # ????? | | ???????# """%[ #????????????# + """"" ????????? | | ???????# ! #????????????# # """"" ""??????? | | ???????# """ #????????????# # """"" """ #?? | | ???????# "R *! #????????????# # #?? | | ???????# """ #????????????# + #?? | | ???????# !#????????????# ##############??? | | ???????##########????????????# # = ???????? | | ?????????????????????###+###?# # ??????? | | ??????????????######## #?# # """ """ ??????? | | ??????????????? #?# # """ """ #?????? | | ????????????????? T #?# + """ """ #?????? | | ??????????????????? #?# #%%* #?????? | | ?????????????????????# ### # %* #?????? | | ??????????????????????#*% #### #[= #?????? | | ??????????????????????# @ uuk ###########?????? | | ??????????????????????# g;#######???????????????? | | ??????????????????????# *=!#?????????????????????? | | ??????????????????????#!%%%#?????????????????????? | | ??????????????????????# =%= ?????????????????????? | | ??????????????????????# !##?????????????????????? | | ??????????????????????# ??????????????????????? | | ??????????????????????# ??????????????????????? | | ??????????????????????# ??????????????????????? | | ??????????????????????####+??????????????????????? | | ?????????????????????????? ??????????????????????? | | ?????????????????????????? ??????????????????????? | | ?????????????????????????? ??????????????????????? | | ?????????????????????????? ??????????????????????? | | ?????????????????????????? ??????????????????????? | | ?????????????????????????? ??????????????????????? | | ?????????????????????????????????????????????????? | | | | | | | | | | | | | | | | | +----------------------------------------------------+ Best States ------------- Heat Dissipation 25 Energy Generation 10 Energy Capacity 250 Matter Stores 300 Matter Capacity 300 Sight Range 16 Terrain Scan Density 10 Armor Coverage 80 Evasion (%) 62 Item Schematics ----------------- None Robot Schematics ------------------ None Fabricated ------------ Nothing Alien Tech Used ----------------- None Achievements -------------- None Challenges ------------ None Game ------ Seed LatentGaussCycler Manual? 0 Play Time 00:05:55 Cumulative 839.6 hours Start 2024.08.07 @ 14:06:16 End 2024.08.07 @ 14:09:16 Sessions 1 Manual Loads 0 Difficulty Rogue Special Mode None Game No. 998 Rogue 719 Adventurer 124 Explorer 155 Win Type - Total 35 Types 27/0/6/1/0/0/0/1/0 Lore% 71 Gallery% 88 Achievement% 78 Wizard Run 0 Options --------- Layout 0 ASCII 0 Keyboard 1 Movement Numpad Keybinds 0 Fullscreen 2 Font 18/Smallcaps Map View 76x50 Zoom Use 0% Tactical HUD 1 Map Filters NONE Filters NONE Steam 1 RUN: 6efd9a31-3a16-4ecd-bc45-e82f2c0a0c0d